[Event "*** SCC Grand Prix: Titled Tuesday Blitz"]
[Site "Chess.com"]
[Date "2020.06.02"]
[Round "2"]
[White "kleinebeer98"]
[Black "Majesth"]
[Result "1-0"]
[WhiteElo "2673"]
[BlackElo "2446"]
[TimeControl "180+1"]
[EndTime "10:15:17 PDT"]
[Termination "kleinebeer98 won by resignation"]

1. e4 {[%clk 0:02:58.9]} 1... e6 {[%clk 0:02:59.6]} 2. d4 {[%clk 0:02:58.7]}
2... d5 {[%clk 0:03:00.2]} 3. Nc3 {[%clk 0:02:59.6]} 3... dxe4 {[%clk
0:03:00.3]} 4. Nxe4 {[%clk 0:03:00.5]} 4... Nd7 {[%clk 0:03:00.8]} 5. Nf3 {[%clk
0:03:00.6]} 5... Ngf6 {[%clk 0:03:01.4]} 6. Nxf6+ {[%clk 0:03:01.1]} 6... Nxf6
{[%clk 0:03:02.1]} 7. Bd3 {[%clk 0:03:00]} 7... c5 {[%clk 0:03:02.6]} 8. Bg5
{[%clk 0:02:59.2]} 8... cxd4 {[%clk 0:03:01.2]} 9. O-O {[%clk 0:02:49.7]} 9...
Bc5 {[%clk 0:02:47.6]} 10. Re1 {[%clk 0:02:44]} 10... h6 {[%clk 0:02:42.4]} 11.
Bh4 {[%clk 0:02:39.6]} 11... Qc7 {[%clk 0:02:21.4]} 12. Ne5 {[%clk 0:02:22.3]}
12... Bd6 {[%clk 0:02:12.1]} 13. Bb5+ {[%clk 0:02:18.7]} 13... Nd7 {[%clk
0:01:51.1]} 14. Qxd4 {[%clk 0:01:58.4]} 14... Bxe5 {[%clk 0:01:22.2]} 15. Rxe5
{[%clk 0:01:59.3]} 15... a6 {[%clk 0:01:18.2]} 16. Rxe6+ {[%clk 0:01:59.6]}
16... fxe6 {[%clk 0:00:18.1]} 17. Qxg7 {[%clk 0:01:47]} 1-0

[Event "*** SCC Grand Prix: Titled Tuesday Blitz"]
[Site "Chess.com"]
[Date "2020.06.02"]
[Round "2"]
[White "RestartingChess"]
[Black "Margarita2907"]
[Result "1-0"]
[WhiteElo "2482"]
[BlackElo "2068"]
[TimeControl "180+1"]
[EndTime "10:15:17 PDT"]
[Termination "RestartingChess won by checkmate"]

1. e4 {[%clk 0:03:00.9]} 1... c5 {[%clk 0:02:58.7]} 2. Nf3 {[%clk 0:03:01.3]}
2... d6 {[%clk 0:02:58]} 3. Bb5+ {[%clk 0:03:00.9]} 3... Bd7 {[%clk 0:02:56.5]}
4. c4 {[%clk 0:03:01]} 4... a6 {[%clk 0:02:55.1]} 5. Bxd7+ {[%clk 0:03:00.6]}
5... Nxd7 {[%clk 0:02:55.2]} 6. Nc3 {[%clk 0:03:01.5]} 6... g6 {[%clk
0:02:55.4]} 7. d3 {[%clk 0:03:02]} 7... Bg7 {[%clk 0:02:55.5]} 8. O-O {[%clk
0:03:02.7]} 8... e6 {[%clk 0:02:53.6]} 9. h3 {[%clk 0:03:03.2]} 9... Ne7 {[%clk
0:02:53.9]} 10. Be3 {[%clk 0:03:03.7]} 10... O-O {[%clk 0:02:54.2]} 11. Qd2
{[%clk 0:03:04.3]} 11... Qc7 {[%clk 0:02:49.1]} 12. Bh6 {[%clk 0:03:04.4]} 12...
Qc6 {[%clk 0:02:43.6]} 13. Bxg7 {[%clk 0:03:02.3]} 13... Kxg7 {[%clk 0:02:42.6]}
14. Rae1 {[%clk 0:03:02.7]} 14... b5 {[%clk 0:02:38.4]} 15. Qg5 {[%clk
0:02:44.8]} 15... Nc8 {[%clk 0:02:29.8]} 16. e5 {[%clk 0:02:36.6]} 16... Ncb6
{[%clk 0:02:11]} 17. b3 {[%clk 0:01:54.4]} 17... d5 {[%clk 0:02:07.2]} 18. cxd5
{[%clk 0:01:52]} 18... Nxd5 {[%clk 0:02:06.2]} 19. Ne4 {[%clk 0:01:51.5]} 19...
Nb4 {[%clk 0:01:46]} 20. Nf6 {[%clk 0:01:28.3]} 20... Nxd3 {[%clk 0:01:18.6]}
21. Nh5+ {[%clk 0:01:26.5]} 21... Kh8 {[%clk 0:01:13.3]} 22. Qh6 {[%clk
0:01:22.2]} 22... Rg8 {[%clk 0:00:48.9]} 23. Ng5 {[%clk 0:01:20.2]} 23... Nf8
{[%clk 0:00:48.5]} 24. Nxf7# {[%clk 0:01:20.2]} 1-0

[Event "*** SCC Grand Prix: Titled Tuesday Blitz"]
[Site "Chess.com"]
[Date "2020.06.02"]
[Round "2"]
[White "jorquerino"]
[Black "gmcorrales"]
[Result "0-1"]
[WhiteElo "2326"]
[BlackElo "2757"]
[TimeControl "180+1"]
[EndTime "10:15:18 PDT"]
[Termination "gmcorrales won on time"]

1. e4 {[%clk 0:03:00.9]} 1... c5 {[%clk 0:02:57]} 2. Nc3 {[%clk 0:02:59.8]} 2...
Nc6 {[%clk 0:02:56.3]} 3. g3 {[%clk 0:02:59.3]} 3... g6 {[%clk 0:02:55.9]} 4. d3
{[%clk 0:02:58.4]} 4... Bg7 {[%clk 0:02:56.4]} 5. Bg2 {[%clk 0:02:57]} 5... e6
{[%clk 0:02:56.7]} 6. Be3 {[%clk 0:02:56.6]} 6... b6 {[%clk 0:02:56.4]} 7. Qd2
{[%clk 0:02:51.9]} 7... Nd4 {[%clk 0:02:54.8]} 8. Nd1 {[%clk 0:02:15.9]} 8...
Bb7 {[%clk 0:02:54.3]} 9. c3 {[%clk 0:02:12.1]} 9... Nc6 {[%clk 0:02:53.6]} 10.
Ne2 {[%clk 0:02:12]} 10... Nge7 {[%clk 0:02:53.4]} 11. Bh6 {[%clk 0:02:11]}
11... O-O {[%clk 0:02:52]} 12. h4 {[%clk 0:02:09.9]} 12... Bxh6 {[%clk
0:02:49.3]} 13. Qxh6 {[%clk 0:02:09]} 13... f6 {[%clk 0:02:50.2]} 14. Qd2 {[%clk
0:01:32.6]} 14... d5 {[%clk 0:02:48.8]} 15. f4 {[%clk 0:01:26.5]} 15... dxe4
{[%clk 0:02:47.5]} 16. dxe4 {[%clk 0:01:25.7]} 16... Qc7 {[%clk 0:02:44.5]} 17.
Ne3 {[%clk 0:01:10.6]} 17... Rad8 {[%clk 0:02:43.6]} 18. Qc2 {[%clk 0:01:10.3]}
18... Ba6 {[%clk 0:02:43.2]} 19. Qb3 {[%clk 0:00:51.4]} 19... Na5 {[%clk
0:02:17.2]} 20. Qxe6+ {[%clk 0:00:45.7]} 20... Kg7 {[%clk 0:02:17.3]} 21. e5
{[%clk 0:00:34.8]} 21... f5 {[%clk 0:02:11.9]} 22. a4 {[%clk 0:00:09.2]} 22...
Rd3 {[%clk 0:02:11.5]} 23. Kf2 {[%clk 0:00:08.3]} 23... c4 {[%clk 0:02:06.2]}
24. Rae1 {[%clk 0:00:07.4]} 24... Bc8 {[%clk 0:02:05.6]} 0-1

[Event "*** SCC Grand Prix: Titled Tuesday Blitz"]
[Site "Chess.com"]
[Date "2020.06.02"]
[Round "2"]
[White "ZAbdumalik"]
[Black "diablanni"]
[Result "1-0"]
[WhiteElo "2649"]
[BlackElo "2350"]
[TimeControl "180+1"]
[EndTime "10:15:19 PDT"]
[Termination "ZAbdumalik won by resignation"]

1. e4 {[%clk 0:03:00.9]} 1... c5 {[%clk 0:02:59.9]} 2. Nf3 {[%clk 0:03:00.6]}
2... Nc6 {[%clk 0:02:59.9]} 3. d4 {[%clk 0:03:01]} 3... cxd4 {[%clk 0:02:59.8]}
4. Nxd4 {[%clk 0:03:01.6]} 4... g6 {[%clk 0:03:00.7]} 5. c4 {[%clk 0:03:01.4]}
5... Nf6 {[%clk 0:03:00.1]} 6. Nc3 {[%clk 0:03:01.4]} 6... d6 {[%clk 0:03:00.1]}
7. Nc2 {[%clk 0:03:01.4]} 7... Bg7 {[%clk 0:02:38.2]} 8. Be2 {[%clk 0:03:01.5]}
8... O-O {[%clk 0:02:21.7]} 9. O-O {[%clk 0:03:00.6]} 9... Nd7 {[%clk
0:02:19.7]} 10. Bd2 {[%clk 0:02:59.8]} 10... Nc5 {[%clk 0:02:18.1]} 11. f3
{[%clk 0:02:57.4]} 11... a5 {[%clk 0:02:11.4]} 12. Rb1 {[%clk 0:02:52.3]} 12...
f5 {[%clk 0:02:01]} 13. exf5 {[%clk 0:02:44]} 13... Bxf5 {[%clk 0:01:59.7]} 14.
Kh1 {[%clk 0:02:38.8]} 14... Nd4 {[%clk 0:01:50.8]} 15. Nxd4 {[%clk 0:02:12.9]}
15... Bxb1 {[%clk 0:01:49.5]} 16. Ndb5 {[%clk 0:02:04.2]} 16... Bf5 {[%clk
0:01:45.7]} 17. Be3 {[%clk 0:02:04.4]} 17... b6 {[%clk 0:01:31.6]} 18. Qd2
{[%clk 0:01:54.2]} 18... Rc8 {[%clk 0:01:25.7]} 19. Nd5 {[%clk 0:01:50.5]} 19...
Bd7 {[%clk 0:01:20]} 20. Bg5 {[%clk 0:01:45.8]} 20... Re8 {[%clk 0:01:17.3]} 21.
Nxd6 {[%clk 0:01:44.7]} 21... exd6 {[%clk 0:01:11.7]} 22. Bxd8 {[%clk
0:01:43.3]} 22... Rcxd8 {[%clk 0:01:12.2]} 23. Nxb6 {[%clk 0:01:42.6]} 23... Be6
{[%clk 0:01:06.1]} 24. Nd5 {[%clk 0:01:39.4]} 24... a4 {[%clk 0:01:06]} 25. Bd1
{[%clk 0:01:34]} 25... Bd7 {[%clk 0:00:59.1]} 26. Nc7 {[%clk 0:01:27.5]} 1-0

[Event "*** SCC Grand Prix: Titled Tuesday Blitz"]
[Site "Chess.com"]
[Date "2020.06.02"]
[Round "2"]
[White "Orest_Vovk"]
[Black "talaicito"]
[Result "1-0"]
[WhiteElo "2390"]
[BlackElo "2106"]
[TimeControl "180+1"]
[EndTime "10:15:22 PDT"]
[Termination "Orest_Vovk won by resignation"]

1. e4 {[%clk 0:03:00.9]} 1... e5 {[%clk 0:02:59.7]} 2. Bc4 {[%clk 0:02:59.1]}
2... Nf6 {[%clk 0:02:57.6]} 3. d3 {[%clk 0:02:59.1]} 3... Nc6 {[%clk 0:02:56.3]}
4. a3 {[%clk 0:02:58]} 4... Bc5 {[%clk 0:02:52.7]} 5. Nc3 {[%clk 0:02:57.8]}
5... O-O {[%clk 0:02:51.7]} 6. h3 {[%clk 0:02:57.9]} 6... h6 {[%clk 0:02:50.5]}
7. Nf3 {[%clk 0:02:56.9]} 7... d6 {[%clk 0:02:48.9]} 8. O-O {[%clk 0:02:56.5]}
8... Ne7 {[%clk 0:02:49.1]} 9. Be3 {[%clk 0:02:55.6]} 9... Ng6 {[%clk 0:02:44]}
10. Bxc5 {[%clk 0:02:54.2]} 10... dxc5 {[%clk 0:02:44.2]} 11. Ne2 {[%clk
0:02:45.4]} 11... c6 {[%clk 0:02:32.6]} 12. Nh2 {[%clk 0:02:29.4]} 12... b5
{[%clk 0:02:31.4]} 13. Ba2 {[%clk 0:02:28.6]} 13... c4 {[%clk 0:02:21.3]} 14.
dxc4 {[%clk 0:02:23.6]} 14... Nxe4 {[%clk 0:02:20.7]} 15. cxb5 {[%clk
0:02:19.2]} 15... Bb7 {[%clk 0:02:03.4]} 16. bxc6 {[%clk 0:02:11.1]} 16... Bxc6
{[%clk 0:02:04.3]} 17. Qxd8 {[%clk 0:02:10.1]} 17... Rfxd8 {[%clk 0:02:02.5]}
18. Rfd1 {[%clk 0:02:10.2]} 18... Kf8 {[%clk 0:01:51.9]} 19. Nf3 {[%clk
0:02:00]} 19... Ke7 {[%clk 0:01:48.8]} 20. Rd3 {[%clk 0:01:45.3]} 20... Rxd3
{[%clk 0:01:35.4]} 21. cxd3 {[%clk 0:01:45.2]} 21... Nd6 {[%clk 0:01:29.3]} 22.
d4 {[%clk 0:01:44.6]} 22... Bxf3 {[%clk 0:01:22.9]} 23. gxf3 {[%clk 0:01:43.7]}
23... Rc8 {[%clk 0:01:13.1]} 24. dxe5 {[%clk 0:01:39.2]} 24... Nxe5 {[%clk
0:01:12.3]} 25. Nd4 {[%clk 0:01:39.2]} 25... Kf6 {[%clk 0:01:06]} 26. Kg2 {[%clk
0:01:32.4]} 26... Nf5 {[%clk 0:01:02.4]} 27. Nxf5 {[%clk 0:01:28.3]} 27... Kxf5
{[%clk 0:01:03.3]} 28. Bd5 {[%clk 0:01:26.9]} 28... Rc2 {[%clk 0:00:59.1]} 29.
Be4+ {[%clk 0:01:26.4]} 29... Kf4 {[%clk 0:00:58.6]} 30. Bxc2 {[%clk 0:01:27.3]}
30... Nxf3 {[%clk 0:00:58.4]} 31. Rd1 {[%clk 0:01:23.5]} 31... Nh4+ {[%clk
0:00:58.4]} 32. Kf1 {[%clk 0:01:23.5]} 1-0

[Event "*** SCC Grand Prix: Titled Tuesday Blitz"]
[Site "Chess.com"]
[Date "2020.06.02"]
[Round "2"]
[White "ErikRonka"]
[Black "aRk_iN"]
[Result "1-0"]
[WhiteElo "2384"]
[BlackElo "2088"]
[TimeControl "180+1"]
[EndTime "10:15:25 PDT"]
[Termination "ErikRonka won by resignation"]

1. d4 {[%clk 0:03:00.9]} 1... d5 {[%clk 0:02:59.6]} 2. e4 {[%clk 0:03:00.5]}
2... dxe4 {[%clk 0:02:56.9]} 3. Nc3 {[%clk 0:03:00.7]} 3... Nf6 {[%clk
0:02:55.8]} 4. f3 {[%clk 0:03:00.7]} 4... Bf5 {[%clk 0:02:54.4]} 5. g4 {[%clk
0:03:00.3]} 5... Bg6 {[%clk 0:02:39.5]} 6. h4 {[%clk 0:03:00.4]} 6... h5 {[%clk
0:02:36.1]} 7. g5 {[%clk 0:02:59.7]} 7... Nd5 {[%clk 0:02:34]} 8. Nxe4 {[%clk
0:02:59.2]} 8... e6 {[%clk 0:02:17.8]} 9. Ne2 {[%clk 0:02:49.1]} 9... Nc6 {[%clk
0:02:06.4]} 10. c4 {[%clk 0:02:44]} 10... Nb6 {[%clk 0:02:05.8]} 11. b3 {[%clk
0:02:39.1]} 11... Bb4+ {[%clk 0:01:14.2]} 12. Kf2 {[%clk 0:02:38]} 12... a5
{[%clk 0:00:29.5]} 13. Be3 {[%clk 0:02:37]} 13... a4 {[%clk 0:00:23.8]} 14. Nf4
{[%clk 0:02:36.8]} 14... axb3 {[%clk 0:00:11.9]} 15. Nxg6 {[%clk 0:02:30.8]}
15... fxg6 {[%clk 0:00:11.7]} 16. axb3 {[%clk 0:02:13.8]} 16... O-O {[%clk
0:00:11.4]} 17. Rxa8 {[%clk 0:02:04]} 17... Qxa8 {[%clk 0:00:10.7]} 18. Bh3
{[%clk 0:01:57.7]} 18... Qa2+ {[%clk 0:00:06.4]} 19. Kg3 {[%clk 0:01:54.7]}
19... Bd6+ {[%clk 0:00:04.6]} 20. Nxd6 {[%clk 0:01:54.3]} 20... cxd6 {[%clk
0:00:05.5]} 21. Bxe6+ {[%clk 0:01:54.3]} 21... Kh7 {[%clk 0:00:06.1]} 22. Rh2
{[%clk 0:01:48.8]} 22... Ne7 {[%clk 0:00:06.1]} 1-0

[Event "*** SCC Grand Prix: Titled Tuesday Blitz"]
[Site "Chess.com"]
[Date "2020.06.02"]
[Round "2"]
[White "cukin84"]
[Black "ehrenfeld"]
[Result "0-1"]
[WhiteElo "2207"]
[BlackElo "2437"]
[TimeControl "180+1"]
[EndTime "10:15:34 PDT"]
[Termination "ehrenfeld won by resignation"]

1. e4 {[%clk 0:03:00.9]} 1... e5 {[%clk 0:02:19.7]} 2. Nf3 {[%clk 0:02:59.8]}
2... Nc6 {[%clk 0:02:19.6]} 3. c3 {[%clk 0:02:59.2]} 3... Nf6 {[%clk 0:02:18.8]}
4. d4 {[%clk 0:02:58.6]} 4... exd4 {[%clk 0:02:18.7]} 5. e5 {[%clk 0:02:58.1]}
5... Nd5 {[%clk 0:02:18.3]} 6. cxd4 {[%clk 0:02:57.6]} 6... Bb4+ {[%clk
0:02:18.7]} 7. Bd2 {[%clk 0:02:57.1]} 7... Bxd2+ {[%clk 0:02:17]} 8. Nbxd2
{[%clk 0:02:56.7]} 8... d6 {[%clk 0:02:14.5]} 9. Bb5 {[%clk 0:02:55.8]} 9... O-O
{[%clk 0:02:13.2]} 10. O-O {[%clk 0:02:53.8]} 10... Nce7 {[%clk 0:02:09.7]} 11.
Rc1 {[%clk 0:02:47]} 11... Bf5 {[%clk 0:02:06.3]} 12. Nc4 {[%clk 0:02:29.2]}
12... a6 {[%clk 0:02:02.9]} 13. exd6 {[%clk 0:02:17.6]} 13... cxd6 {[%clk
0:02:01.8]} 14. Ba4 {[%clk 0:02:15.8]} 14... b5 {[%clk 0:02:01.3]} 15. Bb3
{[%clk 0:02:08.2]} 15... bxc4 {[%clk 0:02:00.7]} 16. Bxc4 {[%clk 0:02:08.3]}
16... Be6 {[%clk 0:01:52.4]} 17. Ng5 {[%clk 0:02:05.5]} 17... Qd7 {[%clk
0:01:51.3]} 18. Bd3 {[%clk 0:01:55.1]} 18... Bf5 {[%clk 0:01:49.4]} 19. Re1
{[%clk 0:01:48.6]} 19... h6 {[%clk 0:01:45.1]} 20. Ne4 {[%clk 0:01:42]} 20... a5
{[%clk 0:01:39.1]} 21. a4 {[%clk 0:01:40]} 21... Rac8 {[%clk 0:01:35.1]} 22. Rb1
{[%clk 0:01:38.6]} 22... Nb4 {[%clk 0:01:31.4]} 23. Bb5 {[%clk 0:01:37.1]} 23...
Qd8 {[%clk 0:01:30.4]} 24. Ng3 {[%clk 0:01:33.6]} 24... Bxb1 {[%clk 0:01:29.5]}
25. Qxb1 {[%clk 0:01:32.9]} 25... d5 {[%clk 0:01:25.1]} 26. Qd1 {[%clk
0:01:28.1]} 26... Qd6 {[%clk 0:01:11.8]} 27. Qg4 {[%clk 0:01:25.9]} 27... f5
{[%clk 0:01:10.5]} 28. Qh4 {[%clk 0:01:24.7]} 28... Ng6 {[%clk 0:01:06.3]} 29.
Qh3 {[%clk 0:01:21.9]} 29... Nf4 {[%clk 0:01:04.5]} 0-1

[Event "*** SCC Grand Prix: Titled Tuesday Blitz"]
[Site "Chess.com"]
[Date "2020.06.02"]
[Round "2"]
[White "ViIIagra"]
[Black "Arek_pacitan"]
[Result "1-0"]
[WhiteElo "2847"]
[BlackElo "2543"]
[TimeControl "180+1"]
[EndTime "10:15:36 PDT"]
[Termination "ViIIagra won by resignation"]

1. e4 {[%clk 0:03:00.9]} 1... c5 {[%clk 0:02:58.6]} 2. Nc3 {[%clk 0:02:58.8]}
2... Nc6 {[%clk 0:02:55.8]} 3. Bb5 {[%clk 0:02:58.9]} 3... e6 {[%clk 0:02:55]}
4. Bxc6 {[%clk 0:02:51.2]} 4... bxc6 {[%clk 0:02:52]} 5. f4 {[%clk 0:02:51.6]}
5... d5 {[%clk 0:02:52]} 6. Nf3 {[%clk 0:02:51.9]} 6... Nf6 {[%clk 0:02:50.9]}
7. d3 {[%clk 0:02:52.1]} 7... Be7 {[%clk 0:02:40.4]} 8. O-O {[%clk 0:02:51.2]}
8... O-O {[%clk 0:02:39.8]} 9. b3 {[%clk 0:02:51.4]} 9... dxe4 {[%clk
0:02:26.5]} 10. Nxe4 {[%clk 0:02:46.2]} 10... Nxe4 {[%clk 0:02:25.9]} 11. dxe4
{[%clk 0:02:47.1]} 11... c4 {[%clk 0:02:23.4]} 12. Be3 {[%clk 0:02:36.9]} 12...
cxb3 {[%clk 0:02:20.8]} 13. axb3 {[%clk 0:02:37.8]} 13... c5 {[%clk 0:02:14.2]}
14. Qe2 {[%clk 0:02:27.1]} 14... Bb7 {[%clk 0:02:12.3]} 15. Qc4 {[%clk
0:02:25.1]} 15... Qb6 {[%clk 0:02:04.6]} 16. Ne5 {[%clk 0:02:24.1]} 16... Rfd8
{[%clk 0:02:00.7]} 17. Rfd1 {[%clk 0:02:22.2]} 17... f6 {[%clk 0:01:34]} 18. Nd3
{[%clk 0:02:15.2]} 18... Qc6 {[%clk 0:01:27.1]} 19. Nf2 {[%clk 0:01:51.1]} 19...
f5 {[%clk 0:01:19.8]} 20. Rxd8+ {[%clk 0:01:50.6]} 20... Rxd8 {[%clk 0:01:20]}
21. Rxa7 {[%clk 0:01:50.4]} 21... fxe4 {[%clk 0:01:18.5]} 22. f5 {[%clk
0:01:34.2]} 22... Rd4 {[%clk 0:00:37.3]} 23. Bxd4 {[%clk 0:01:25.1]} 23... e3
{[%clk 0:00:37.7]} 24. Qxe6+ {[%clk 0:01:25.4]} 24... Qxe6 {[%clk 0:00:37.2]}
25. fxe6 {[%clk 0:01:26.3]} 25... e2 {[%clk 0:00:36.5]} 26. Bc3 {[%clk
0:01:23.7]} 26... Bf6 {[%clk 0:00:35.9]} 27. Be1 {[%clk 0:01:23.5]} 1-0

[Event "*** SCC Grand Prix: Titled Tuesday Blitz"]
[Site "Chess.com"]
[Date "2020.06.02"]
[Round "2"]
[White "novocane"]
[Black "Piotrek1979"]
[Result "0-1"]
[WhiteElo "2165"]
[BlackElo "2415"]
[TimeControl "180+1"]
[EndTime "10:15:50 PDT"]
[Termination "Piotrek1979 won by resignation"]

1. d4 {[%clk 0:03:00.8]} 1... Nf6 {[%clk 0:02:57.3]} 2. c4 {[%clk 0:03:00.9]}
2... Nc6 {[%clk 0:02:52]} 3. Nf3 {[%clk 0:03:00.9]} 3... d6 {[%clk 0:02:51.4]}
4. Nc3 {[%clk 0:02:59.8]} 4... e5 {[%clk 0:02:50.6]} 5. d5 {[%clk 0:02:59.2]}
5... Ne7 {[%clk 0:02:49.6]} 6. e4 {[%clk 0:02:57]} 6... Ng6 {[%clk 0:02:48.6]}
7. h4 {[%clk 0:02:41.4]} 7... h5 {[%clk 0:02:47.3]} 8. Bg5 {[%clk 0:02:39.9]}
8... Be7 {[%clk 0:02:47.2]} 9. Be2 {[%clk 0:02:38.8]} 9... Ng4 {[%clk
0:02:40.5]} 10. g3 {[%clk 0:02:25.9]} 10... Nf8 {[%clk 0:02:26]} 11. Qc2 {[%clk
0:02:16.8]} 11... a5 {[%clk 0:02:25.2]} 12. Rf1 {[%clk 0:02:06.7]} 12... Nd7
{[%clk 0:02:24.1]} 13. O-O-O {[%clk 0:02:05.4]} 13... Nc5 {[%clk 0:02:23.4]} 14.
Kb1 {[%clk 0:02:03.8]} 14... Bd7 {[%clk 0:02:22.4]} 15. Bc1 {[%clk 0:01:44.1]}
15... g6 {[%clk 0:02:05.5]} 16. Ng5 {[%clk 0:01:38]} 16... f6 {[%clk 0:01:51.4]}
17. Nf3 {[%clk 0:01:14.8]} 17... O-O {[%clk 0:01:47]} 18. Ne1 {[%clk 0:01:09.5]}
18... f5 {[%clk 0:01:44.9]} 19. f3 {[%clk 0:01:06.2]} 19... Nf6 {[%clk
0:01:44.2]} 20. Bg5 {[%clk 0:00:56]} 20... fxe4 {[%clk 0:01:42.7]} 21. Bxf6
{[%clk 0:00:52.9]} 21... Rxf6 {[%clk 0:01:35.1]} 22. Nxe4 {[%clk 0:00:44.7]}
22... Nxe4 {[%clk 0:01:33.1]} 23. fxe4 {[%clk 0:00:44.7]} 23... Rxf1 {[%clk
0:01:25.1]} 24. Bxf1 {[%clk 0:00:44.7]} 24... Qf8 {[%clk 0:01:25.7]} 25. Qh2
{[%clk 0:00:35.4]} 25... Qxf1 {[%clk 0:01:22.3]} 0-1

[Event "*** SCC Grand Prix: Titled Tuesday Blitz"]
[Site "Chess.com"]
[Date "2020.06.02"]
[Round "2"]
[White "AndrewMaco"]
[Black "chessbia"]
[Result "1-0"]
[WhiteElo "2607"]
[BlackElo "2114"]
[TimeControl "180+1"]
[EndTime "10:15:52 PDT"]
[Termination "AndrewMaco won by resignation"]

1. e4 {[%clk 0:03:00.9]} 1... e5 {[%clk 0:02:59.7]} 2. Nf3 {[%clk 0:03:00.5]}
2... Nc6 {[%clk 0:03:00.3]} 3. Bb5 {[%clk 0:03:00.3]} 3... a6 {[%clk 0:03:00.4]}
4. Ba4 {[%clk 0:03:00.5]} 4... Nf6 {[%clk 0:03:00.9]} 5. O-O {[%clk 0:03:00.8]}
5... Be7 {[%clk 0:03:00.9]} 6. Re1 {[%clk 0:03:00.9]} 6... b5 {[%clk 0:03:01.6]}
7. Bb3 {[%clk 0:03:01.6]} 7... d6 {[%clk 0:03:02]} 8. c3 {[%clk 0:03:01.9]} 8...
O-O {[%clk 0:03:01.7]} 9. h3 {[%clk 0:03:02.5]} 9... Nb8 {[%clk 0:03:02.1]} 10.
d4 {[%clk 0:03:02]} 10... Nbd7 {[%clk 0:03:02.5]} 11. c4 {[%clk 0:03:02.7]}
11... bxc4 {[%clk 0:02:59.1]} 12. Bxc4 {[%clk 0:03:03.6]} 12... Bb7 {[%clk
0:02:57.3]} 13. Nc3 {[%clk 0:03:03.2]} 13... exd4 {[%clk 0:02:49.9]} 14. Nxd4
{[%clk 0:03:04.1]} 14... Nb6 {[%clk 0:02:43.3]} 15. Bb3 {[%clk 0:03:02.8]} 15...
g6 {[%clk 0:02:43.4]} 16. Qf3 {[%clk 0:02:37.5]} 16... c5 {[%clk 0:02:30.8]} 17.
Nde2 {[%clk 0:02:19.2]} 17... c4 {[%clk 0:02:28.6]} 18. Bc2 {[%clk 0:02:18.9]}
18... Nfd7 {[%clk 0:02:26.5]} 19. Nf4 {[%clk 0:02:17.2]} 19... Ne5 {[%clk
0:02:24.8]} 20. Qg3 {[%clk 0:02:17.4]} 20... Bh4 {[%clk 0:02:23]} 21. Qe3 {[%clk
0:02:15.5]} 21... Nbd7 {[%clk 0:02:11.6]} 22. Rd1 {[%clk 0:02:12.1]} 22... Nc5
{[%clk 0:02:08.9]} 23. b4 {[%clk 0:02:02.5]} 23... cxb3 {[%clk 0:02:07.7]} 24.
axb3 {[%clk 0:02:02.5]} 24... Re8 {[%clk 0:01:55.4]} 25. Ncd5 {[%clk 0:01:56.5]}
25... Rc8 {[%clk 0:01:39.7]} 26. Bb2 {[%clk 0:01:55.3]} 26... Bg5 {[%clk
0:01:24.5]} 27. Qe2 {[%clk 0:01:49]} 27... Bh6 {[%clk 0:01:16.4]} 28. b4 {[%clk
0:01:39.2]} 28... Ncd7 {[%clk 0:01:11.3]} 29. Bb3 {[%clk 0:01:37.9]} 29... Nf6
{[%clk 0:01:00.5]} 30. Nxf6+ {[%clk 0:01:34.6]} 30... Qxf6 {[%clk 0:01:01.4]}
31. Nd5 {[%clk 0:01:34.3]} 31... Qh4 {[%clk 0:00:54.1]} 32. Kh2 {[%clk 0:01:24]}
32... Rcd8 {[%clk 0:00:48.4]} 33. g3 {[%clk 0:01:23]} 33... Qh5 {[%clk
0:00:37.4]} 34. Nf6+ {[%clk 0:01:21.9]} 1-0

[Event "*** SCC Grand Prix: Titled Tuesday Blitz"]
[Site "Chess.com"]
[Date "2020.06.02"]
[Round "2"]
[White "Evgeny81"]
[Black "RobertPrieb2007"]
[Result "0-1"]
[WhiteElo "2708"]
[BlackElo "2503"]
[TimeControl "180+1"]
[EndTime "10:15:54 PDT"]
[Termination "RobertPrieb2007 won by resignation"]

1. d4 {[%clk 0:03:00.9]} 1... Nf6 {[%clk 0:02:59.6]} 2. c4 {[%clk 0:03:01.1]}
2... g6 {[%clk 0:02:59.3]} 3. Nc3 {[%clk 0:03:01.2]} 3... d5 {[%clk 0:02:59.4]}
4. Bf4 {[%clk 0:02:59.6]} 4... Bg7 {[%clk 0:02:58.7]} 5. e3 {[%clk 0:02:59.9]}
5... O-O {[%clk 0:02:56.8]} 6. cxd5 {[%clk 0:02:59.1]} 6... Nxd5 {[%clk
0:02:54.7]} 7. Nxd5 {[%clk 0:02:59.8]} 7... Qxd5 {[%clk 0:02:55.3]} 8. Bxc7
{[%clk 0:03:00.1]} 8... Bf5 {[%clk 0:02:52.1]} 9. Ne2 {[%clk 0:02:54.7]} 9...
Na6 {[%clk 0:02:49.4]} 10. Nc3 {[%clk 0:02:45.2]} 10... Qc6 {[%clk 0:02:49]} 11.
Bg3 {[%clk 0:02:26.8]} 11... Nb4 {[%clk 0:02:43.7]} 12. Rc1 {[%clk 0:02:26.2]}
12... Rac8 {[%clk 0:02:43.2]} 13. a3 {[%clk 0:02:14.6]} 13... Nd5 {[%clk
0:02:39.7]} 14. Be2 {[%clk 0:01:49.3]} 14... Nxc3 {[%clk 0:02:35.5]} 15. Rxc3
{[%clk 0:01:49.2]} 15... Qxg2 {[%clk 0:02:31.7]} 16. Bf3 {[%clk 0:01:48.7]}
16... Qh3 {[%clk 0:02:31.7]} 17. Bxb7 {[%clk 0:01:43.6]} 17... Rxc3 {[%clk
0:02:31.4]} 18. bxc3 {[%clk 0:01:44.3]} 18... e5 {[%clk 0:02:15.8]} 19. Rg1
{[%clk 0:01:36.2]} 19... Rb8 {[%clk 0:02:11]} 20. Bg2 {[%clk 0:01:34.5]} 20...
Qh6 {[%clk 0:02:10.1]} 21. e4 {[%clk 0:01:29.1]} 21... Be6 {[%clk 0:02:05.5]}
22. d5 {[%clk 0:01:23.9]} 22... Bd7 {[%clk 0:02:01.6]} 23. Bf3 {[%clk
0:01:11.9]} 23... f5 {[%clk 0:01:58.2]} 24. exf5 {[%clk 0:01:09.2]} 24... Bxf5
{[%clk 0:01:59.1]} 25. Qa4 {[%clk 0:00:48.1]} 25... Qc1+ {[%clk 0:01:53.3]} 26.
Bd1 {[%clk 0:00:46]} 26... Qxc3+ {[%clk 0:01:50.1]} 27. Ke2 {[%clk 0:00:45.8]}
27... Qd3+ {[%clk 0:01:46.8]} 28. Ke1 {[%clk 0:00:45.5]} 28... Bh6 {[%clk
0:01:41.5]} 29. Qa5 {[%clk 0:00:31.2]} 29... Qe4+ {[%clk 0:01:32.9]} 30. Kf1
{[%clk 0:00:25.6]} 30... Bh3+ {[%clk 0:01:32.3]} 31. Rg2 {[%clk 0:00:23.9]}
31... Qxg2+ {[%clk 0:01:29.8]} 0-1